{"text_format":"1","workbook":"xlsx","n_sheets":14,"sheets":["Cover","Info","Results","E01","E02","E03","E04","E05","E06","E07","E08","E09","E10","About"],"not_rendered":{"charts":11,"images":37,"macros":1,"external_links":0,"defined_names":15,"comments":0,"pivot_tables":0},"unopened":[],"bounds":{"document_bytes":16777216,"sheet_cells":100000,"rows_first":2000,"rows_last":500,"rows_between":2000,"halvings":0,"cell_chars":16384,"cell_head_chars":4096},"cells_cut":0,"cells_raw":0,"read":"whole","date_system":"1900"}

{"sheet":"Cover","index":0,"n_rows":0,"n_cols":0,"rows_kept":0,"cut":false,"hidden":false,"merged":[]}

{"sheet":"Info","index":1,"n_rows":39,"n_cols":4,"rows_kept":39,"cut":false,"hidden":false,"merged":[[0,0,0,16383],[38,1,38,3],[39,1,39,3],[2,1,2,2],[3,1,3,2],[4,1,4,2],[5,1,5,2],[6,1,6,2],[37,1,37,3],[31,1,31,2],[32,1,32,2],[33,1,33,2],[34,1,34,2],[35,1,35,2]]}
[]
[]
[null,"평가 대상 정보",null,"답변"]
[null,"도시명","도시명"]
[null,"도시형태(광역시, 기초지자체 등)","도시형태(광역시, 기초지자체 등)"]
[null,"국가","국가"]
[null,"평가일자","평가일자"]
[]
[null,"도시 정보(필수사항)","답변","답변일자"]
[null,"도시의 가장 높은 직위(시장 등)"]
[null,"도시 인구수"]
[null,"도시 면적(제곱 킬로미터)"]
[null,"인구 밀도(제곱 킬로미터 당)"]
[null,"청년층(15~24세)(%)"]
[null,"노년층(65세 이상)(%)"]
[null,"여성 세대주"]
[null,"비문맹률(%)"]
[null,"빈곤율(%)"]
[null,"가구당 평균 소득(USD)"]
[null,"외국인 거주 비율(%)"]
[null,"가장 일어날 만한 재난위험"]
[null,"가장 극심한 재난위험"]
[]
[null,"도시정보(선택사항)","답변","답변일자"]
[null,"전체 가구수"]
[null,"가구당 세대수"]
[null,"생계비(USD)"]
[null,"1인당 국가 GDP(USD)"]
[null,"지니계수"]
[null,"1인당 도시 생산량(USD)"]
[]
[null,"지자체 재난위험경감과 복원력 담당부서",null,"답변"]
[null,"스코어카드 평가를 진행할 사람이름"]
[null,"부서명"]
[null,"연락처"]
[null,"평가결과나 사례를 UNDRR 이나 파트너들과 공유할 수 있는가"]
[]
[null,"이해관계자 정보"]
[null,"이 평가를 지원하는 모든 이해관계자의 리스트를 기록해 주세요"]

{"sheet":"Results","index":2,"n_rows":152,"n_cols":13,"rows_kept":152,"cut":false,"hidden":false,"merged":[[113,1,113,3],[96,2,96,5],[104,2,104,5],[105,2,105,5],[99,2,99,5],[111,1,111,2],[34,2,34,5],[89,2,89,5],[90,2,90,5],[91,2,91,5],[41,2,41,5],[42,2,42,5],[43,2,43,5],[52,2,52,5],[59,2,59,5],[65,2,65,5],[57,3,57,6],[39,3,39,6],[63,3,63,6],[69,3,69,6],[77,3,77,6],[73,2,73,5],[71,2,71,5],[72,2,72,5],[74,2,74,5],[94,3,94,5],[102,3,102,6],[97,2,97,5],[98,2,98,5],[79,2,79,5],[80,2,80,5],[81,2,81,5]]}
[]
[]
[]
[]
[]
[]
[]
[]
[]
[]
[]
[]
[]
[]
[]
[]
[]
[]
[]
[]
[]
[]
[]
[]
[]
[]
[]
[]
[]
[]
[]
[]
[null,"필수사항 01: ",null,{"$f":"D118","v":"복원력을 위한 조직 구성 - 공중 보건과 거버넌스의 통합"}]
[]
[null,{"$f":"C130","v":"A1.1"},{"$f":"E130","v":"보건 분야는 여러 분야와 관련된 재난 위험 관리 거버넌스의 일부"},null,null,null,{"$f":"F130","v":0}]
[]
[]
[]
[]
[null,"필수사항 02: ",null,{"$f":"D119","v":"현재와 미래의 위험 시나리오 파악, 이해, 활용 - 공중 보건과 재난 시나리오의 통합"}]
[]
[null,{"$f":"C131","v":"A2.1"},{"$f":"E131","v":"다른 것에 의존하지 않는 독자적인 재난 시나리오로서 응급 사태와 재난 범위를 포함(예를 들면 질병의 발생/세계적 유행병, 기근, 물 부족 등)"},null,null,null,{"$f":"F131","v":0}]
[null,{"$f":"C132","v":"A2.2"},{"$f":"E132","v":"다른 재난 위험 시나리오(예를 들면 홍수, 열 관련 재난, 지진)에서 예측 가능한 공중 보건의 영향을 포함 "},null,null,null,{"$f":"F132","v":0}]
[null,{"$f":"C133","v":"A2.3"},{"$f":"E133","v":"비전염성 질환을 포함하는 만성적 보건 상황을 재난 계획에 포함"},null,null,null,{"$f":"F133","v":0}]
[]
[]
[]
[]
[]
[]
[null,"필수사항 03:",null,{"$f":"D120","v":"재난 복원력을 위한 재정적 역량 강화 - 공중 보건과 재정의 통합"}]
[]
[null,{"$f":"C134","v":"A3.1"},{"$f":"E134","v":"공중 보건 측면의 복원력을 위한 재정 지원 "},null,null,null,{"$f":"F134","v":0}]
[]
[]
[]
[]
[null,"필수사항 04:",null,{"$f":"D121","v":"복원력에 강한 도시 개발의 추구 – 공중 보건과 토지의 사용/건설 법규의 통합"}]
[]
[null,{"$f":"C135","v":"A4.1"},{"$f":"E135","v":"복원력이 있는 토지의 구획 및 건설 법규에 대한 핵심 보건 시설의 준수"},null,null,null,{"$f":"F135","v":0}]
[]
[]
[]
[null,"필수사항 05:",null,{"$f":"D122","v":"자연 생태계가 제공하는 보호 기능 강화를 위한 천연 완충제의 보존 – 공중 보건에 영향을 미치는 생태계 서비스의 관리"}]
[]
[null,{"$f":"C136","v":"A5.1"},{"$f":"E136","v":"공중 보건 혜택을 제공하는 생태계 서비스의 보존 및 관리"},null,null,null,{"$f":"F136","v":0}]
[]
[]
[]
[null,"필수사항 06:",null,{"$f":"D123","v":"복원력을 위한 기관역량의 강화 – 공중 보건과 기관역량의 통합"}]
[]
[null,{"$f":"C137","v":"A6.1"},{"$f":"E137","v":"재난 복원력과 관련된 역량과 기술을 갖고 있는 공중 보건 인력의 가용성"},null,null,null,{"$f":"F137","v":0}]
[null,{"$f":"C138","v":"A6.2"},{"$f":"E138","v":"다른 이해 당사자와 공중 보건 시스템 데이터의 공유"},null,null,null,{"$f":"F138","v":0}]
[null,{"$f":"C139","v":"A6.2.1"},{"$f":"E139","v":"공중 보건 시스템의 이해 당사자와 기타 데이터의 공유"},null,null,null,{"$f":"F139","v":0}]
[null,{"$f":"C140","v":"A6.2.2"},{"$f":"E140","v":"개인의 보건 기록 보호 및 열람"},null,null,null,{"$f":"F140","v":0}]
[]
[]
[null,"필수사항 07: ",null,{"$f":"D124","v":"복원력을 위한 사회적 역량의 이해 및 강화 – 공중 보건과 사회적 역량의 통합"}]
[]
[null,{"$f":"C141","v":"A7.1"},{"$f":"E141","v":"재난 위험 관리 측면에서 지역사회 내 공중 보건 시스템의 유효성"},null,null,null,{"$f":"F141","v":0}]
[null,{"$f":"C142","v":"A7.1.2"},{"$f":"E142","v":"공중 보건 정보에 대한 지역사회의 열람과 신뢰 "},null,null,null,{"$f":"F142","v":0}]
[null,{"$f":"C143","v":"A7.2"},{"$f":"E143","v":" “정상화”를 위한 지역사회의 능력–정신 건강 "},null,null,null,{"$f":"F143","v":0}]
[]
[]
[]
[]
[]
[null,"필수사항 08:",null,{"$f":"D125","v":"사회기반시설의 복원력 강화 - 공중 보건과 사회기반시설 복원력의 통합"}]
[]
[null,{"$f":"C144","v":"A8.1"},{"$f":"E144","v":"필수사항 8에서 고려되지 않은 공중 보건 사회기반시설 의 구조적, 비구조적 안전과 기능의 강화 "},null,null,null,{"$f":"F144","v":0}]
[null,{"$f":"C145","v":"A8.2"},{"$f":"E145","v":"필수사항 8에서 고려되지 않은 공중 보건 사회기반시설의 급증 수용 능력"},null,null,null,{"$f":"F145","v":0}]
[null,{"$f":"C146","v":"A8.3"},{"$f":"E146","v":"필수사항 8에서 고려되지 않은 기저 질환자에 대한 지속적인 치료 "},null,null,null,{"$f":"F146","v":0}]
[]
[]
[null,"필수사항 09:",null,{"$f":"D126","v":"효과적인 재난 대비와 대응력 확보 - 공중 보건과 재난 대응의 통합"}]
[]
[null,{"$f":"C147","v":"A9.1"},{"$f":"E147","v":"보건 관련 응급 사태 조기 경보 시스템 "},null,null,null,{"$f":"F147","v":0}]
[null,{"$f":"C148","v":"A9.2"},{"$f":"E148","v":"공중 보건과 응급 사태 관리의 통합 "},null,null,null,{"$f":"F148","v":0}]
[null,{"$f":"C149","v":"A9.3"},{"$f":"E149","v":"고위험 인구 또는 기저 질환을 갖고 집에서 기거하는 사람들에 대한 배려 "},null,null,null,{"$f":"F149","v":0}]
[null,{"$f":"C150","v":"A9.4"},{"$f":"E150","v":"공중 보건 용품을 필요한 사람에게 전달하는 능력 "},null,null,null,{"$f":"F150","v":0}]
[]
[]
[null,"필수사항 10: ",null,{"$f":"D127","v":"신속한 복원 및 더 나은 재건 - 공중 보건과 복원/더 나은 재건과의 통합"}]
[]
[null,{"$f":"C151","v":"A10.1"},{"$f":"E151","v":"공중 보건과 행복에 대한 장기적 영향의 완화"},null,null,null,{"$f":"F151","v":0}]
[null,{"$f":"C152","v":"A10.2"},{"$f":"E152","v":"학습 및 개선 "},null,null,null,{"$f":"F152","v":0}]
[]
[]
[]
[]
[]
[null,{"$f":"TODAY()","v":"2021-02-24"},null,null,null,null,null,{"$f":"Info!$B$4","v":"도시명"},{"$f":"Info!$D$4","v":0},null,{"$f":"Info!$B$6","v":"국가"},{"$f":"Info!$D$6","v":0}]
[]
[]
[]
[]
[null,null,"Label","Name",null,"Essential","TotalScore","MaxScore","Label"]
[null,null,"S1","복원력을 위한 조직 구성 - 공중 보건과 거버넌스의 통합",null,"E1",{"$f":"SUMIFS($F$130:$F$189,$B$130:$B$189,F118)","v":0},{"$f":"COUNTIFS($B$130:$B$152,F118)*5","v":5},"01",null,{"$f":"SUM(G118:G127)","v":0},{"$f":"K118/K119","v":0},{"$f":"CONCATENATE(\"본 평가의 총점 \",SUM(G118:G127),\" / \",SUM(H118:H127))","v":"본 평가의 총점 0 / 115"}]
[null,null,"S2","현재와 미래의 위험 시나리오 파악, 이해, 활용 - 공중 보건과 재난 시나리오의 통합",null,"E2",{"$f":"SUMIFS($F$130:$F$1010,$B$130:$B$1010,F119)","v":0},15,"02",null,{"$f":"SUM(H118:H127)","v":115},{"$f":"1-L118","v":1}]
[null,null,"S3","재난 복원력을 위한 재정적 역량 강화 - 공중 보건과 재정의 통합",null,"E3",0,5,"03"]
[null,null,"S4","복원력에 강한 도시 개발의 추구 – 공중 보건과 토지의 사용/건설 법규의 통합",null,"E4",0,5,"04"]
[null,null,"S5","자연 생태계가 제공하는 보호 기능 강화를 위한 천연 완충제의 보존 – 공중 보건에 영향을 미치는 생태계 서비스의 관리",null,"E5",0,5,"05"]
[null,null,"S6","복원력을 위한 기관역량의 강화 – 공중 보건과 기관역량의 통합",null,"E6",0,20,"06"]
[null,null,"S7","복원력을 위한 사회적 역량의 이해 및 강화 – 공중 보건과 사회적 역량의 통합",null,"E7",0,15,"07"]
[null,null,"S8","사회기반시설의 복원력 강화 - 공중 보건과 사회기반시설 복원력의 통합",null,"E8",0,15,"08"]
[null,null,"S9","효과적인 재난 대비와 대응력 확보 - 공중 보건과 재난 대응의 통합",null,"E9",0,20,"09"]
[null,null,"S10","신속한 복원 및 더 나은 재건 - 공중 보건과 복원/더 나은 재건과의 통합",null,"E10",0,10,"10"]
[]
[null,"Section","Ref",null,"Question","SelectedScore","ThisScore"]
[null,"E1",{"$f":"'E01'!$G$5","v":"A1.1"},null,{"$f":"'E01'!I5","v":"보건 분야는 여러 분야와 관련된 재난 위험 관리 거버넌스의 일부"},{"$f":"IF(G130=\"\",0,IF(G130=0,0,6-G130))","v":0},{"$f":"OFFSET('E01'!$E$1,MATCH(C130,'E01'!G:G,0)+3,0)","v":0}]
[null,"E2",{"$f":"'E02'!$G$5","v":"A2.1"},null,{"$f":"'E02'!I5","v":"다른 것에 의존하지 않는 독자적인 재난 시나리오로서 응급 사태와 재난 범위를 포함(예를 들면 질병의 발생/세계적 유행병, 기근, 물 부족 등)"},{"$f":"IF(G131=\"\",0,IF(G131=0,0,6-G131))","v":0},{"$f":"OFFSET('E02'!$E$1,MATCH(C131,'E02'!G:G,0)+3,0)","v":0}]
[null,"E2",{"$f":"'E02'!$G$18","v":"A2.2"},null,{"$f":"'E02'!$I$18","v":"다른 재난 위험 시나리오(예를 들면 홍수, 열 관련 재난, 지진)에서 예측 가능한 공중 보건의 영향을 포함 "},0,{"$f":"OFFSET('E02'!$E$1,MATCH(C132,'E02'!G:G,0)+3,0)","v":0}]
[null,"E2",{"$f":"'E02'!$G$31","v":"A2.3"},null,{"$f":"'E02'!$I$31","v":"비전염성 질환을 포함하는 만성적 보건 상황을 재난 계획에 포함"},0,{"$f":"OFFSET('E02'!$E$1,MATCH(C133,'E02'!G:G,0)+3,0)","v":0}]
[null,"E3",{"$f":"'E03'!$G$5","v":"A3.1"},null,{"$f":"'E03'!$I$5","v":"공중 보건 측면의 복원력을 위한 재정 지원 "},0,{"$f":"OFFSET('E03'!$E$1,MATCH(C134,'E03'!G:G,0)+3,0)","v":0}]
[null,"E4",{"$f":"'E04'!$G$5","v":"A4.1"},null,{"$f":"'E04'!$I$5","v":"복원력이 있는 토지의 구획 및 건설 법규에 대한 핵심 보건 시설의 준수"},0,{"$f":"OFFSET('E04'!$E$1,MATCH(C135,'E04'!G:G,0)+3,0)","v":0}]
[null,"E5",{"$f":"'E05'!$G$5","v":"A5.1"},null,{"$f":"'E05'!$I$5","v":"공중 보건 혜택을 제공하는 생태계 서비스의 보존 및 관리"},0,{"$f":"OFFSET('E05'!$E$1,MATCH(C136,'E05'!G:G,0)+3,0)","v":0}]
[null,"E6",{"$f":"'E06'!$G$5","v":"A6.1"},null,{"$f":"'E06'!$I$5","v":"재난 복원력과 관련된 역량과 기술을 갖고 있는 공중 보건 인력의 가용성"},0,{"$f":"OFFSET('E06'!$E$1,MATCH(C137,'E06'!G:G,0)+3,0)","v":0}]
[null,"E6",{"$f":"'E06'!$G$18","v":"A6.2"},null,{"$f":"'E06'!$I$18","v":"다른 이해 당사자와 공중 보건 시스템 데이터의 공유"},0,{"$f":"OFFSET('E06'!$E$1,MATCH(C138,'E06'!G:G,0)+3,0)","v":0}]
[null,"E6",{"$f":"'E06'!$G$31","v":"A6.2.1"},null,{"$f":"'E06'!$I$31","v":"공중 보건 시스템의 이해 당사자와 기타 데이터의 공유"},0,{"$f":"OFFSET('E06'!$E$1,MATCH(C139,'E06'!G:G,0)+3,0)","v":0}]
[null,"E6",{"$f":"'E06'!$G$44","v":"A6.2.2"},null,{"$f":"'E06'!$I$44","v":"개인의 보건 기록 보호 및 열람"},0,{"$f":"OFFSET('E06'!$E$1,MATCH(C140,'E06'!G:G,0)+3,0)","v":0}]
[null,"E7",{"$f":"'E07'!$G$5","v":"A7.1"},null,{"$f":"'E07'!$I$5","v":"재난 위험 관리 측면에서 지역사회 내 공중 보건 시스템의 유효성"},0,{"$f":"OFFSET('E07'!$E$1,MATCH(C141,'E07'!G:G,0)+3,0)","v":0}]
[null,"E7",{"$f":"'E07'!$G$18","v":"A7.1.2"},null,{"$f":"'E07'!$I$18","v":"공중 보건 정보에 대한 지역사회의 열람과 신뢰 "},0,{"$f":"OFFSET('E07'!$E$1,MATCH(C142,'E07'!G:G,0)+3,0)","v":0}]
[null,"E7",{"$f":"'E07'!$G$31","v":"A7.2"},null,{"$f":"'E07'!$I$31","v":" “정상화”를 위한 지역사회의 능력–정신 건강 "},0,{"$f":"OFFSET('E07'!$E$1,MATCH(C143,'E07'!G:G,0)+3,0)","v":0}]
[null,"E8",{"$f":"'E08'!$G$5","v":"A8.1"},null,{"$f":"'E08'!$I$5","v":"필수사항 8에서 고려되지 않은 공중 보건 사회기반시설 의 구조적, 비구조적 안전과 기능의 강화 "},0,{"$f":"OFFSET('E08'!$E$1,MATCH(C144,'E08'!G:G,0)+3,0)","v":0}]
[null,"E8",{"$f":"'E08'!$G$18","v":"A8.2"},null,{"$f":"'E08'!$I$18","v":"필수사항 8에서 고려되지 않은 공중 보건 사회기반시설의 급증 수용 능력"},{"$f":"IF(G145=\"\",0,IF(G145=0,0,6-G145))","v":0},{"$f":"OFFSET('E08'!$E$1,MATCH(C145,'E08'!G:G,0)+3,0)","v":0}]
[null,"E8",{"$f":"'E08'!$G$31","v":"A8.3"},null,{"$f":"'E08'!$I$31","v":"필수사항 8에서 고려되지 않은 기저 질환자에 대한 지속적인 치료 "},0,{"$f":"OFFSET('E08'!$E$1,MATCH(C146,'E08'!G:G,0)+3,0)","v":0}]
[null,"E9",{"$f":"'E09'!$G$5","v":"A9.1"},null,{"$f":"'E09'!$I$5","v":"보건 관련 응급 사태 조기 경보 시스템 "},0,{"$f":"OFFSET('E09'!$E$1,MATCH(C147,'E09'!G:G,0)+3,0)","v":0}]
[null,"E9",{"$f":"'E09'!$G$18","v":"A9.2"},null,{"$f":"'E09'!$I$18","v":"공중 보건과 응급 사태 관리의 통합 "},0,{"$f":"OFFSET('E09'!$E$1,MATCH(C148,'E09'!G:G,0)+3,0)","v":0}]
[null,"E9",{"$f":"'E09'!$G$31","v":"A9.3"},null,{"$f":"'E09'!$I$31","v":"고위험 인구 또는 기저 질환을 갖고 집에서 기거하는 사람들에 대한 배려 "},0,{"$f":"OFFSET('E09'!$E$1,MATCH(C149,'E09'!G:G,0)+3,0)","v":0}]
[null,"E9",{"$f":"'E09'!$G$44","v":"A9.4"},null,{"$f":"'E09'!$I$44","v":"공중 보건 용품을 필요한 사람에게 전달하는 능력 "},0,{"$f":"OFFSET('E09'!$E$1,MATCH(C150,'E09'!G:G,0)+3,0)","v":0}]
[null,"E10",{"$f":"'E10'!$G$5","v":"A10.1"},null,{"$f":"'E10'!$I$5","v":"공중 보건과 행복에 대한 장기적 영향의 완화"},0,{"$f":"OFFSET('E10'!$E$1,MATCH(C151,'E10'!G:G,0)+3,0)","v":0}]
[null,"E10",{"$f":"'E10'!$G$18","v":"A10.2"},null,{"$f":"'E10'!$I$18","v":"학습 및 개선 "},0,{"$f":"OFFSET('E10'!$E$1,MATCH(C152,'E10'!G:G,0)+3,0)","v":0}]

{"sheet":"E01","index":3,"n_rows":15,"n_cols":9,"rows_kept":15,"cut":false,"hidden":false,"merged":[[7,2,7,3],[8,2,13,3],[5,2,5,3],[6,2,6,3]]}
["a"]
[]
[null,"A.1 공중 보건과 거버넌스의 통합(필수사항 1)",null,null,null,null,"A.1",null,"공중 보건과 거버넌스의 통합(필수사항 1)"]
[]
[null,"A.1.1 보건 분야는 여러 분야와 관련된 재난 위험 관리 거버넌스의 일부",null,null,null,null,"A1.1",null,"보건 분야는 여러 분야와 관련된 재난 위험 관리 거버넌스의 일부"]
[null,"평가 질문","비고"]
[]
[null,"답변","증빙수단 (설명 및 증빙자료)"]
[null,null,null,null,null,{"$f":"IF(E9=1,TRUE,FALSE)","v":false}]
[null,null,null,null,null,{"$f":"IF(E9=2,TRUE,FALSE)","v":false}]
[null,null,null,null,null,{"$f":"IF(E9=3,TRUE,FALSE)","v":false}]
[null,null,null,null,null,{"$f":"IF(E9=4,TRUE,FALSE)","v":false}]
[null,null,null,null,null,{"$f":"IF(E9=5,TRUE,FALSE)","v":false}]
[null,null,null,null,null,{"$f":"IF(E9=6,TRUE,FALSE)","v":false}]
[null,"최상의 복원력을 달성하기 위한 활동계획","담당부서","추진기간"]

{"sheet":"E02","index":4,"n_rows":41,"n_cols":9,"rows_kept":41,"cut":false,"hidden":false,"merged":[[5,2,5,3],[6,2,6,3],[7,2,7,3],[18,2,18,3],[19,2,19,3],[20,2,20,3],[8,2,13,3],[21,2,26,3],[34,2,39,3],[31,2,31,3],[32,2,32,3],[33,2,33,3]]}
[]
[]
[null,"A.2 공중 보건과 재난 시나리오의 통합(필수사항 2)",null,null,null,null,"A.2",null,"공중 보건과 재난 시나리오의 통합(필수사항 2)"]
[]
[null,"A2.1 다른 것에 의존하지 않는 독자적인 재난 시나리오로서 응급 사태와 재난 범위를 포함(예를 들면 질병의 발생/세계적 유행병, 기근, 물 부족 등)",null,null,null,null,"A2.1",null,"다른 것에 의존하지 않는 독자적인 재난 시나리오로서 응급 사태와 재난 범위를 포함(예를 들면 질병의 발생/세계적 유행병, 기근, 물 부족 등)"]
[null,"평가 질문","비고"]
[]
[null,"답변","증빙수단 (설명 및 증빙자료)"]
[null,null,null,null,null,{"$f":"IF(E9=1,TRUE,FALSE)","v":false}]
[null,null,null,null,null,{"$f":"IF(E9=2,TRUE,FALSE)","v":false}]
[null,null,null,null,null,{"$f":"IF(E9=3,TRUE,FALSE)","v":false}]
[null,null,null,null,null,{"$f":"IF(E9=4,TRUE,FALSE)","v":false}]
[null,null,null,null,null,{"$f":"IF(E9=5,TRUE,FALSE)","v":false}]
[null,null,null,null,null,{"$f":"IF(E9=6,TRUE,FALSE)","v":false}]
[null,"최상의 복원력을 달성하기 위한 활동계획","담당부서","추진기간"]
[]
[]
[null,"A2.2 다른 재난 위험 시나리오(예를 들면 홍수, 열 관련 재난, 지진)에서 예측 가능한 공중 보건의 영향을 포함 ",null,null,null,null,"A2.2",null,"다른 재난 위험 시나리오(예를 들면 홍수, 열 관련 재난, 지진)에서 예측 가능한 공중 보건의 영향을 포함 "]
[null,"평가 질문","비고"]
[]
[null,"답변","증빙수단 (설명 및 증빙자료)"]
[null,null,null,null,null,{"$f":"IF(E22=1,TRUE,FALSE)","v":false}]
[null,null,null,null,null,{"$f":"IF(E22=2,TRUE,FALSE)","v":false}]
[null,null,null,null,null,{"$f":"IF(E22=3,TRUE,FALSE)","v":false}]
[null,null,null,null,null,{"$f":"IF(E22=4,TRUE,FALSE)","v":false}]
[null,null,null,null,null,{"$f":"IF(E22=5,TRUE,FALSE)","v":false}]
[null,null,null,null,null,{"$f":"IF(E22=6,TRUE,FALSE)","v":false}]
[null,"최상의 복원력을 달성하기 위한 활동계획","담당부서","추진기간"]
[]
[]
[null,"A2.3 비전염성 질환을 포함하는 만성적 보건 상황을 재난 계획에 포함",null,null,null,null,"A2.3",null,"비전염성 질환을 포함하는 만성적 보건 상황을 재난 계획에 포함"]
[null,"평가 질문","비고"]
[]
[null,"답변","증빙수단 (설명 및 증빙자료)"]
[null,null,null,null,null,{"$f":"IF(E35=1,TRUE,FALSE)","v":false}]
[null,null,null,null,null,{"$f":"IF(E35=2,TRUE,FALSE)","v":false}]
[null,null,null,null,null,{"$f":"IF(E35=3,TRUE,FALSE)","v":false}]
[null,null,null,null,null,{"$f":"IF(E35=4,TRUE,FALSE)","v":false}]
[null,null,null,null,null,{"$f":"IF(E35=5,TRUE,FALSE)","v":false}]
[null,null,null,null,null,{"$f":"IF(E35=6,TRUE,FALSE)","v":false}]
[null,"최상의 복원력을 달성하기 위한 활동계획","담당부서","추진기간"]

{"sheet":"E03","index":5,"n_rows":15,"n_cols":9,"rows_kept":15,"cut":false,"hidden":false,"merged":[[4,1,4,3],[5,2,5,3],[6,2,6,3],[7,2,7,3],[8,2,13,3]]}
[]
[]
[null,"A3 공중 보건과 재정의 통합(필수사항 3)",null,null,null,null,"A3",null,"공중 보건과 재정의 통합(필수사항 3)"]
[]
[null,"A3.1 공중 보건 측면의 복원력을 위한 재정 지원 ",null,null,null,null,"A3.1",null,"공중 보건 측면의 복원력을 위한 재정 지원 "]
[null,"평가 질문","비고"]
[]
[null,"답변","증빙수단 (설명 및 증빙자료)"]
[null,null,null,null,null,{"$f":"IF(E9=1,TRUE,FALSE)","v":false}]
[null,null,null,null,null,{"$f":"IF(E9=2,TRUE,FALSE)","v":false}]
[null,null,null,null,null,{"$f":"IF(E9=3,TRUE,FALSE)","v":false}]
[null,null,null,null,null,{"$f":"IF(E9=4,TRUE,FALSE)","v":false}]
[null,null,null,null,null,{"$f":"IF(E9=5,TRUE,FALSE)","v":false}]
[null,null,null,null,null,{"$f":"IF(E9=6,TRUE,FALSE)","v":false}]
[null,"최상의 복원력을 달성하기 위한 활동계획","담당부서","추진기간"]

{"sheet":"E04","index":6,"n_rows":15,"n_cols":9,"rows_kept":15,"cut":false,"hidden":false,"merged":[[4,1,4,3],[5,2,5,3],[6,2,6,3],[7,2,7,3],[8,2,13,3]]}
[]
[]
[null,"A4 공중 보건과 토지의 사용/건설 법규의 통합(필수사항 4)",null,null,null,null,"A4",null,"공중 보건과 토지의 사용/건설 법규의 통합(필수사항 4)"]
[]
[null,"A4.1 복원력이 있는 토지의 구획 및 건설 법규에 대한 핵심 보건 시설의 준수",null,null,null,null,"A4.1",null,"복원력이 있는 토지의 구획 및 건설 법규에 대한 핵심 보건 시설의 준수"]
[null,"평가 질문","비고"]
[]
[null,"답변","증빙수단 (설명 및 증빙자료)"]
[null,null,null,null,null,{"$f":"IF(E9=1,TRUE,FALSE)","v":false}]
[null,null,null,null,null,{"$f":"IF(E9=2,TRUE,FALSE)","v":false}]
[null,null,null,null,null,{"$f":"IF(E9=3,TRUE,FALSE)","v":false}]
[null,null,null,null,null,{"$f":"IF(E9=4,TRUE,FALSE)","v":false}]
[null,null,null,null,null,{"$f":"IF(E9=5,TRUE,FALSE)","v":false}]
[null,null,null,null,null,{"$f":"IF(E9=6,TRUE,FALSE)","v":false}]
[null,"최상의 복원력을 달성하기 위한 활동계획","담당부서","추진기간"]

{"sheet":"E05","index":7,"n_rows":15,"n_cols":9,"rows_kept":15,"cut":false,"hidden":false,"merged":[[4,1,4,3],[5,2,5,3],[6,2,6,3],[7,2,7,3],[8,2,13,3]]}
[]
[]
[null,"A5 공중 보건에 영향을 미치는 생태계 서비스의 관리(필수사항 5)",null,null,null,null,"A5",null,"공중 보건에 영향을 미치는 생태계 서비스의 관리(필수사항 5)"]
[]
[null,"A5.1 공중 보건 혜택을 제공하는 생태계 서비스의 보존 및 관리",null,null,null,null,"A5.1",null,"공중 보건 혜택을 제공하는 생태계 서비스의 보존 및 관리"]
[null,"평가 질문","비고"]
[]
[null,"답변","증빙수단 (설명 및 증빙자료)"]
[null,null,null,null,null,{"$f":"IF(E9=1,TRUE,FALSE)","v":false}]
[null,null,null,null,null,{"$f":"IF(E9=2,TRUE,FALSE)","v":false}]
[null,null,null,null,null,{"$f":"IF(E9=3,TRUE,FALSE)","v":false}]
[null,null,null,null,null,{"$f":"IF(E9=4,TRUE,FALSE)","v":false}]
[null,null,null,null,null,{"$f":"IF(E9=5,TRUE,FALSE)","v":false}]
[null,null,null,null,null,{"$f":"IF(E9=6,TRUE,FALSE)","v":false}]
[null,"최상의 복원력을 달성하기 위한 활동계획","담당부서","추진기간"]

{"sheet":"E06","index":8,"n_rows":54,"n_cols":9,"rows_kept":54,"cut":false,"hidden":false,"merged":[[4,1,4,3],[5,2,5,3],[6,2,6,3],[7,2,7,3],[17,1,17,3],[8,2,13,3],[18,2,18,3],[47,2,52,3],[34,2,39,3],[21,2,26,3],[19,2,19,3],[20,2,20,3],[30,1,30,3],[31,2,31,3],[32,2,32,3],[33,2,33,3],[43,1,43,3],[44,2,44,3],[45,2,45,3],[46,2,46,3]]}
[]
[]
[null,"A6 공중 보건과 기관역량의 통합(필수사항 6)",null,null,null,null,"A6",null,"공중 보건과 기관역량의 통합(필수사항 6)"]
[]
[null,"A6.1 재난 복원력과 관련된 역량과 기술을 갖고 있는 공중 보건 인력의 가용성",null,null,null,null,"A6.1",null,"재난 복원력과 관련된 역량과 기술을 갖고 있는 공중 보건 인력의 가용성"]
[null,"평가 질문","비고"]
[]
[null,"답변","증빙수단 (설명 및 증빙자료)"]
[null,null,null,null,null,{"$f":"IF(E9=1,TRUE,FALSE)","v":false}]
[null,null,null,null,null,{"$f":"IF(E9=2,TRUE,FALSE)","v":false}]
[null,null,null,null,null,{"$f":"IF(E9=3,TRUE,FALSE)","v":false}]
[null,null,null,null,null,{"$f":"IF(E9=4,TRUE,FALSE)","v":false}]
[null,null,null,null,null,{"$f":"IF(E9=5,TRUE,FALSE)","v":false}]
[null,null,null,null,null,{"$f":"IF(E9=6,TRUE,FALSE)","v":false}]
[null,"최상의 복원력을 달성하기 위한 활동계획","담당부서","추진기간"]
[]
[]
[null,"A6.2 다른 이해 당사자와 공중 보건 시스템 데이터의 공유",null,null,null,null,"A6.2",null,"다른 이해 당사자와 공중 보건 시스템 데이터의 공유"]
[null,"평가 질문","비고"]
[]
[null,"답변","증빙수단 (설명 및 증빙자료)"]
[null,null,null,null,null,{"$f":"IF(E22=1,TRUE,FALSE)","v":false}]
[null,null,null,null,null,{"$f":"IF(E22=2,TRUE,FALSE)","v":false}]
[null,null,null,null,null,{"$f":"IF(E22=3,TRUE,FALSE)","v":false}]
[null,null,null,null,null,{"$f":"IF(E22=4,TRUE,FALSE)","v":false}]
[null,null,null,null,null,{"$f":"IF(E22=5,TRUE,FALSE)","v":false}]
[null,null,null,null,null,{"$f":"IF(E22=6,TRUE,FALSE)","v":false}]
[null,"최상의 복원력을 달성하기 위한 활동계획","담당부서","추진기간"]
[]
[]
[null,"A6.2.1 공중 보건 시스템의 이해 당사자와 기타 데이터의 공유",null,null,null,null,"A6.2.1",null,"공중 보건 시스템의 이해 당사자와 기타 데이터의 공유"]
[null,"평가 질문","비고"]
[]
[null,"답변","증빙수단 (설명 및 증빙자료)"]
[null,null,null,null,null,{"$f":"IF(E35=1,TRUE,FALSE)","v":false}]
[null,null,null,null,null,{"$f":"IF(E35=2,TRUE,FALSE)","v":false}]
[null,null,null,null,null,{"$f":"IF(E35=3,TRUE,FALSE)","v":false}]
[null,null,null,null,null,{"$f":"IF(E35=4,TRUE,FALSE)","v":false}]
[null,null,null,null,null,{"$f":"IF(E35=5,TRUE,FALSE)","v":false}]
[null,null,null,null,null,{"$f":"IF(E35=6,TRUE,FALSE)","v":false}]
[null,"최상의 복원력을 달성하기 위한 활동계획","담당부서","추진기간"]
[]
[]
[null,"A6.2.2 개인의 보건 기록 보호 및 열람",null,null,null,null,"A6.2.2",null,"개인의 보건 기록 보호 및 열람"]
[null,"평가 질문","비고"]
[]
[null,"답변","증빙수단 (설명 및 증빙자료)"]
[null,null,null,null,null,{"$f":"IF(E48=1,TRUE,FALSE)","v":false}]
[null,null,null,null,null,{"$f":"IF(E48=2,TRUE,FALSE)","v":false}]
[null,null,null,null,null,{"$f":"IF(E48=3,TRUE,FALSE)","v":false}]
[null,null,null,null,null,{"$f":"IF(E48=4,TRUE,FALSE)","v":false}]
[null,null,null,null,null,{"$f":"IF(E48=5,TRUE,FALSE)","v":false}]
[null,null,null,null,null,{"$f":"IF(E48=6,TRUE,FALSE)","v":false}]
[null,"최상의 복원력을 달성하기 위한 활동계획","담당부서","추진기간"]

{"sheet":"E07","index":9,"n_rows":43,"n_cols":9,"rows_kept":43,"cut":false,"hidden":false,"merged":[[4,1,4,3],[5,2,5,3],[6,2,6,3],[7,2,7,3],[17,1,17,3],[18,2,18,3],[8,2,13,3],[21,2,26,3],[34,2,39,3],[19,2,19,3],[20,2,20,3],[30,1,30,3],[31,2,31,3],[32,2,32,3],[33,2,33,3]]}
[]
[]
[null,"A7 공중 보건과 사회적 역량의 통합(필수사항 7)",null,null,null,null,"A7",null,"공중 보건과 사회적 역량의 통합(필수사항 7)"]
[null,null,null,null,null,null,""]
[null,"A7.1 재난 위험 관리 측면에서 지역사회 내 공중 보건 시스템의 유효성",null,null,null,null,"A7.1",null,"재난 위험 관리 측면에서 지역사회 내 공중 보건 시스템의 유효성"]
[null,"평가 질문","비고",null,null,null,""]
[null,null,null,null,null,null,""]
[null,"답변","증빙수단 (설명 및 증빙자료)",null,null,null,""]
[null,null,null,null,null,{"$f":"IF(E9=1,TRUE,FALSE)","v":false},""]
[null,null,null,null,null,{"$f":"IF(E9=2,TRUE,FALSE)","v":false},""]
[null,null,null,null,null,{"$f":"IF(E9=3,TRUE,FALSE)","v":false},""]
[null,null,null,null,null,{"$f":"IF(E9=4,TRUE,FALSE)","v":false},""]
[null,null,null,null,null,{"$f":"IF(E9=5,TRUE,FALSE)","v":false},""]
[null,null,null,null,null,{"$f":"IF(E9=6,TRUE,FALSE)","v":false},""]
[null,"최상의 복원력을 달성하기 위한 활동계획","담당부서","추진기간",null,null,""]
[null,null,null,null,null,null,""]
[null,null,null,null,null,null,""]
[null,"A7.1.2 공중 보건 정보에 대한 지역사회의 열람과 신뢰 ",null,null,null,null,"A7.1.2",null,"공중 보건 정보에 대한 지역사회의 열람과 신뢰 "]
[null,"평가 질문","비고",null,null,null,""]
[null,null,null,null,null,null,""]
[null,"답변","증빙수단 (설명 및 증빙자료)",null,null,null,""]
[null,null,null,null,null,{"$f":"IF(E22=1,TRUE,FALSE)","v":false},""]
[null,null,null,null,null,{"$f":"IF(E22=2,TRUE,FALSE)","v":false},""]
[null,null,null,null,null,{"$f":"IF(E22=3,TRUE,FALSE)","v":false},""]
[null,null,null,null,null,{"$f":"IF(E22=4,TRUE,FALSE)","v":false},""]
[null,null,null,null,null,{"$f":"IF(E22=5,TRUE,FALSE)","v":false},""]
[null,null,null,null,null,{"$f":"IF(E22=6,TRUE,FALSE)","v":false},""]
[null,"최상의 복원력을 달성하기 위한 활동계획","담당부서","추진기간",null,null,""]
[null,null,null,null,null,null,""]
[null,null,null,null,null,null,""]
[null,"A7.2  “정상화”를 위한 지역사회의 능력–정신 건강 ",null,null,null,null,"A7.2",null," “정상화”를 위한 지역사회의 능력–정신 건강 "]
[null,"평가 질문","비고",null,null,null,""]
[null,null,null,null,null,null,""]
[null,"답변","증빙수단 (설명 및 증빙자료)",null,null,null,""]
[null,null,null,null,null,{"$f":"IF(E35=1,TRUE,FALSE)","v":false},""]
[null,null,null,null,null,{"$f":"IF(E35=2,TRUE,FALSE)","v":false},""]
[null,null,null,null,null,{"$f":"IF(E35=3,TRUE,FALSE)","v":false},""]
[null,null,null,null,null,{"$f":"IF(E35=4,TRUE,FALSE)","v":false},""]
[null,null,null,null,null,{"$f":"IF(E35=5,TRUE,FALSE)","v":false},""]
[null,null,null,null,null,{"$f":"IF(E35=6,TRUE,FALSE)","v":false},""]
[null,"최상의 복원력을 달성하기 위한 활동계획","담당부서","추진기간",null,null,""]
[null,null,null,null,null,null,""]
[null,null,null,null,null,null,""]

{"sheet":"E08","index":10,"n_rows":43,"n_cols":9,"rows_kept":43,"cut":false,"hidden":false,"merged":[[34,2,39,3],[21,2,26,3],[8,2,13,3],[33,2,33,3],[4,1,4,3],[5,2,5,3],[6,2,6,3],[7,2,7,3],[17,1,17,3],[18,2,18,3],[19,2,19,3],[20,2,20,3],[30,1,30,3],[31,2,31,3],[32,2,32,3]]}
[]
[]
[null,"A8 공중 보건과 사회기반시설 복원력의 통합(필수사항 8)",null,null,null,null,"A8",null,"공중 보건과 사회기반시설 복원력의 통합(필수사항 8)"]
[null,null,null,null,null,null,""]
[null,"A8.1 필수사항 8에서 고려되지 않은 공중 보건 사회기반시설 의 구조적, 비구조적 안전과 기능의 강화 ",null,null,null,null,"A8.1",null,"필수사항 8에서 고려되지 않은 공중 보건 사회기반시설 의 구조적, 비구조적 안전과 기능의 강화 "]
[null,"평가 질문","비고",null,null,null,""]
[null,null,null,null,null,null,""]
[null,"답변","증빙수단 (설명 및 증빙자료)",null,null,null,""]
[null,null,null,null,null,{"$f":"IF(E9=1,TRUE,FALSE)","v":false},""]
[null,null,null,null,null,{"$f":"IF(E9=2,TRUE,FALSE)","v":false},""]
[null,null,null,null,null,{"$f":"IF(E9=3,TRUE,FALSE)","v":false},""]
[null,null,null,null,null,{"$f":"IF(E9=4,TRUE,FALSE)","v":false},""]
[null,null,null,null,null,{"$f":"IF(E9=5,TRUE,FALSE)","v":false},""]
[null,null,null,null,null,{"$f":"IF(E9=6,TRUE,FALSE)","v":false},""]
[null,"최상의 복원력을 달성하기 위한 활동계획","담당부서","추진기간",null,null,""]
[null,null,null,null,null,null,""]
[null,null,null,null,null,null,""]
[null,"A8.2 필수사항 8에서 고려되지 않은 공중 보건 사회기반시설의 급증 수용 능력",null,null,null,null,"A8.2",null,"필수사항 8에서 고려되지 않은 공중 보건 사회기반시설의 급증 수용 능력"]
[null,"평가 질문","비고",null,null,null,""]
[null,null,null,null,null,null,""]
[null,"답변","증빙수단 (설명 및 증빙자료)",null,null,null,""]
[null,null,null,null,null,{"$f":"IF(E22=1,TRUE,FALSE)","v":false},""]
[null,null,null,null,null,{"$f":"IF(E22=2,TRUE,FALSE)","v":false},""]
[null,null,null,null,null,{"$f":"IF(E22=3,TRUE,FALSE)","v":false},""]
[null,null,null,null,null,{"$f":"IF(E22=4,TRUE,FALSE)","v":false},""]
[null,null,null,null,null,{"$f":"IF(E22=5,TRUE,FALSE)","v":false},""]
[null,null,null,null,null,{"$f":"IF(E22=6,TRUE,FALSE)","v":false},""]
[null,"최상의 복원력을 달성하기 위한 활동계획","담당부서","추진기간",null,null,""]
[null,null,null,null,null,null,""]
[null,null,null,null,null,null,""]
[null,"A8.3 필수사항 8에서 고려되지 않은 기저 질환자에 대한 지속적인 치료 ",null,null,null,null,"A8.3",null,"필수사항 8에서 고려되지 않은 기저 질환자에 대한 지속적인 치료 "]
[null,"평가 질문","비고",null,null,null,""]
[null,null,null,null,null,null,""]
[null,"답변","증빙수단 (설명 및 증빙자료)",null,null,null,""]
[null,null,null,null,null,{"$f":"IF(E35=1,TRUE,FALSE)","v":false},""]
[null,null,null,null,null,{"$f":"IF(E35=2,TRUE,FALSE)","v":false},""]
[null,null,null,null,null,{"$f":"IF(E35=3,TRUE,FALSE)","v":false},""]
[null,null,null,null,null,{"$f":"IF(E35=4,TRUE,FALSE)","v":false},""]
[null,null,null,null,null,{"$f":"IF(E35=5,TRUE,FALSE)","v":false},""]
[null,null,null,null,null,{"$f":"IF(E35=6,TRUE,FALSE)","v":false},""]
[null,"최상의 복원력을 달성하기 위한 활동계획","담당부서","추진기간",null,null,""]
[null,null,null,null,null,null,""]
[null,null,null,null,null,null,""]

{"sheet":"E09","index":11,"n_rows":56,"n_cols":9,"rows_kept":56,"cut":false,"hidden":false,"merged":[[47,2,52,3],[34,2,39,3],[21,2,26,3],[30,1,30,3],[31,2,31,3],[32,2,32,3],[33,2,33,3],[43,1,43,3],[44,2,44,3],[45,2,45,3],[46,2,46,3],[19,2,19,3],[20,2,20,3],[4,1,4,3],[5,2,5,3],[6,2,6,3],[7,2,7,3],[17,1,17,3],[18,2,18,3],[8,2,13,3]]}
[]
[]
[null,"A9 공중 보건과 재난 대응의 통합(필수사항 9)",null,null,null,null,"A9",null,"공중 보건과 재난 대응의 통합(필수사항 9)"]
[null,null,null,null,null,null,""]
[null,"A9.1 보건 관련 응급 사태 조기 경보 시스템 ",null,null,null,null,"A9.1",null,"보건 관련 응급 사태 조기 경보 시스템 "]
[null,"평가 질문","비고",null,null,null,""]
[null,null,null,null,null,null,""]
[null,"답변","증빙수단 (설명 및 증빙자료)",null,null,null,""]
[null,null,null,null,null,{"$f":"IF(E9=1,TRUE,FALSE)","v":false},""]
[null,null,null,null,null,{"$f":"IF(E9=2,TRUE,FALSE)","v":false},""]
[null,null,null,null,null,{"$f":"IF(E9=3,TRUE,FALSE)","v":false},""]
[null,null,null,null,null,{"$f":"IF(E9=4,TRUE,FALSE)","v":false},""]
[null,null,null,null,null,{"$f":"IF(E9=5,TRUE,FALSE)","v":false},""]
[null,null,null,null,null,{"$f":"IF(E9=6,TRUE,FALSE)","v":false},""]
[null,"최상의 복원력을 달성하기 위한 활동계획","담당부서","추진기간",null,null,""]
[null,null,null,null,null,null,""]
[null,null,null,null,null,null,""]
[null,"A9.2 공중 보건과 응급 사태 관리의 통합 ",null,null,null,null,"A9.2",null,"공중 보건과 응급 사태 관리의 통합 "]
[null,"평가 질문","비고",null,null,null,""]
[null,null,null,null,null,null,""]
[null,"답변","증빙수단 (설명 및 증빙자료)",null,null,null,""]
[null,null,null,null,null,{"$f":"IF(E22=1,TRUE,FALSE)","v":false},""]
[null,null,null,null,null,{"$f":"IF(E22=2,TRUE,FALSE)","v":false},""]
[null,null,null,null,null,{"$f":"IF(E22=3,TRUE,FALSE)","v":false},""]
[null,null,null,null,null,{"$f":"IF(E22=4,TRUE,FALSE)","v":false},""]
[null,null,null,null,null,{"$f":"IF(E22=5,TRUE,FALSE)","v":false},""]
[null,null,null,null,null,{"$f":"IF(E22=6,TRUE,FALSE)","v":false},""]
[null,"최상의 복원력을 달성하기 위한 활동계획","담당부서","추진기간",null,null,""]
[null,null,null,null,null,null,""]
[null,null,null,null,null,null,""]
[null,"A9.3 고위험 인구 또는 기저 질환을 갖고 집에서 기거하는 사람들에 대한 배려 ",null,null,null,null,"A9.3",null,"고위험 인구 또는 기저 질환을 갖고 집에서 기거하는 사람들에 대한 배려 "]
[null,"평가 질문","비고",null,null,null,""]
[null,null,null,null,null,null,""]
[null,"답변","증빙수단 (설명 및 증빙자료)",null,null,null,""]
[null,null,null,null,null,{"$f":"IF(E35=1,TRUE,FALSE)","v":false},""]
[null,null,null,null,null,{"$f":"IF(E35=2,TRUE,FALSE)","v":false},""]
[null,null,null,null,null,{"$f":"IF(E35=3,TRUE,FALSE)","v":false},""]
[null,null,null,null,null,{"$f":"IF(E35=4,TRUE,FALSE)","v":false},""]
[null,null,null,null,null,{"$f":"IF(E35=5,TRUE,FALSE)","v":false},""]
[null,null,null,null,null,{"$f":"IF(E35=6,TRUE,FALSE)","v":false},""]
[null,"최상의 복원력을 달성하기 위한 활동계획","담당부서","추진기간",null,null,""]
[null,null,null,null,null,null,""]
[null,null,null,null,null,null,""]
[null,"A9.4 공중 보건 용품을 필요한 사람에게 전달하는 능력 ",null,null,null,null,"A9.4",null,"공중 보건 용품을 필요한 사람에게 전달하는 능력 "]
[null,"평가 질문","비고",null,null,null,""]
[null,null,null,null,null,null,""]
[null,"답변","증빙수단 (설명 및 증빙자료)",null,null,null,""]
[null,null,null,null,null,{"$f":"IF(E48=1,TRUE,FALSE)","v":false},""]
[null,null,null,null,null,{"$f":"IF(E48=2,TRUE,FALSE)","v":false},""]
[null,null,null,null,null,{"$f":"IF(E48=3,TRUE,FALSE)","v":false},""]
[null,null,null,null,null,{"$f":"IF(E48=4,TRUE,FALSE)","v":false},""]
[null,null,null,null,null,{"$f":"IF(E48=5,TRUE,FALSE)","v":false},""]
[null,null,null,null,null,{"$f":"IF(E48=6,TRUE,FALSE)","v":false},""]
[null,"최상의 복원력을 달성하기 위한 활동계획","담당부서","추진기간",null,null,""]
[null,null,null,null,null,null,""]
[null,null,null,null,null,null,""]

{"sheet":"E10","index":12,"n_rows":28,"n_cols":9,"rows_kept":28,"cut":false,"hidden":false,"merged":[[4,1,4,3],[5,2,5,3],[6,2,6,3],[7,2,7,3],[17,1,17,3],[21,2,26,3],[8,2,13,3],[19,2,19,3],[20,2,20,3],[18,2,18,3]]}
[]
[]
[null,"A10 공중 보건과 복원/더 나은 재건과의 통합(필수사항 10)",null,null,null,null,"A10",null,"공중 보건과 복원/더 나은 재건과의 통합(필수사항 10)"]
[]
[null,"A10.1 공중 보건과 행복에 대한 장기적 영향의 완화",null,null,null,null,"A10.1",null,"공중 보건과 행복에 대한 장기적 영향의 완화"]
[null,"평가 질문","비고"]
[]
[null,"답변","증빙수단 (설명 및 증빙자료)"]
[null,null,null,null,null,{"$f":"IF(E9=1,TRUE,FALSE)","v":false}]
[null,null,null,null,null,{"$f":"IF(E9=2,TRUE,FALSE)","v":false}]
[null,null,null,null,null,{"$f":"IF(E9=3,TRUE,FALSE)","v":false}]
[null,null,null,null,null,{"$f":"IF(E9=4,TRUE,FALSE)","v":false}]
[null,null,null,null,null,{"$f":"IF(E9=5,TRUE,FALSE)","v":false}]
[null,null,null,null,null,{"$f":"IF(E9=6,TRUE,FALSE)","v":false}]
[null,"최상의 복원력을 달성하기 위한 활동계획","담당부서","추진기간"]
[]
[]
[null,"A10.2 학습 및 개선 ",null,null,null,null,"A10.2",null,"학습 및 개선 "]
[null,"평가 질문","비고"]
[]
[null,"답변","증빙수단 (설명 및 증빙자료)"]
[null,null,null,null,null,{"$f":"IF(E22=1,TRUE,FALSE)","v":false}]
[null,null,null,null,null,{"$f":"IF(E22=2,TRUE,FALSE)","v":false}]
[null,null,null,null,null,{"$f":"IF(E22=3,TRUE,FALSE)","v":false}]
[null,null,null,null,null,{"$f":"IF(E22=4,TRUE,FALSE)","v":false}]
[null,null,null,null,null,{"$f":"IF(E22=5,TRUE,FALSE)","v":false}]
[null,null,null,null,null,{"$f":"IF(E22=6,TRUE,FALSE)","v":false}]
[null,"최상의 복원력을 달성하기 위한 활동계획","담당부서","추진기간"]

{"sheet":"About","index":13,"n_rows":0,"n_cols":0,"rows_kept":0,"cut":false,"hidden":false,"merged":[]}